Workbook

Sheet Master Sheet (hidden)
A1: Chemical | B1: CAS No. | C1: Final Toxicity Values | D1: Basis for Final Toxicity Values
A2: Acenaphthene | B2: 83-32-9 | C2: Not Available | D2: No RfC/IUR Available for This Contaminant
A3: Acetone (2-Propanone) | B3: 67-64-1 | C3: Not Available | D3: No RfC/IUR Available for This Contaminant
A4: Acetophenone | B4: 98-86-2 | C4: Not Available | D4: No RfC/IUR Available for This Contaminant
A5: Aldrin | B5: 309-00-2 | C5: Not Available | D5: No RfC/IUR Available for This Contaminant
A6: Aluminum (total) | B6: 7429-90-5 | C6: 5 | D6: Inhalation Reference Concentration (µg/m3)
A7: Anthracene | B7: 120-12-7 | C7: Not Available | D7: No RfC/IUR Available for This Contaminant
A8: Antimony (total) | B8: 7440-36-0 | C8: 0.0003 | D8: Inhalation Reference Concentration (µg/m3)
A9: Arsenic (total) | B9: 7440-38-2 | C9: 0.0043 | D9: Inhalation Unit Risk Factor (µg/m3)-1
A10: Atrazine | B10: 1912-24-9 | C10: Not Available | D10: No RfC/IUR Available for This Contaminant
A11: Barium (total) | B11: 7440-39-3 | C11: 0.5 | D11: Inhalation Reference Concentration (µg/m3)
A12: Benzaldehyde | B12: 100-52-7 | C12: Not Available | D12: No RfC/IUR Available for This Contaminant
A13: Benzene | B13: 71-43-2 | C13: 30 | D13: Inhalation Reference Concentration (µg/m3)
A14: Benzo(a)anthracene (1,2-Benzanthracene) | B14: 56-55-3 | C14: 6e-05 | D14: Inhalation Unit Risk Factor (µg/m3)-1
A15: Benzo(a)pyrene | B15: 50-32-8 | C15: 0.002 | D15: Inhalation Reference Concentration (µg/m3)
A16: Benzo(b)fluoranthene (3,4-Benzofluoranthene) | B16: 205-99-2 | C16: 6e-05 | D16: Inhalation Unit Risk Factor (µg/m3)-1
A17: Benzo(k)fluoranthene | B17: 207-08-9 | C17: 6e-06 | D17: Inhalation Unit Risk Factor (µg/m3)-1
A18: Beryllium | B18: 7440-41-7 | C18: 0.02 | D18: Inhalation Reference Concentration (µg/m3)
A19: 1,1'-Biphenyl | B19: 92-52-4 | C19: Not Available | D19: No RfC/IUR Available for This Contaminant
A20: Bis(2-chloroethoxy)methane | B20: 111-91-1 | C20: Not Available | D20: No RfC/IUR Available for This Contaminant
A21: Bis(2-chloroethyl)ether | B21: 111-44-4 | C21: 117 | D21: Inhalation Reference Concentration (µg/m3)
A22: Bis(2-chloroisopropyl)ether; (2,2'-oxybis(1-chloropropane)); (2-chloro-1-methylethyl) ether | B22: 108-60-1 | C22: Not Available | D22: No RfC/IUR Available for This Contaminant
A23: Bis(2-ethylhexyl)phthalate | B23: 117-81-7 | C23: Not Available | D23: No RfC/IUR Available for This Contaminant
A24: Bromodichloromethane (Dichlorobromomethane) | B24: 75-27-4 | C24: Not Available | D24: No RfC/IUR Available for This Contaminant
A25: Bromoform | B25: 75-25-2 | C25: Not Available | D25: No RfC/IUR Available for This Contaminant
A26: Bromomethane (Methyl bromide) | B26: 74-83-9 | C26: 5 | D26: Inhalation Reference Concentration (µg/m3)
A27: 2-Butanone (Methyl ethyl ketone) (MEK) | B27: 78-93-3 | C27: 5000 | D27: Inhalation Reference Concentration (µg/m3)
A28: Butylbenzyl phthalate | B28: 85-68-7 | C28: Not Available | D28: No RfC/IUR Available for This Contaminant
A29: Cadmium | B29: 7440-43-9 | C29: 0.01 | D29: Inhalation Reference Concentration (µg/m3)
A30: Caprolactam | B30: 105-60-2 | C30: 2.2 | D30: Inhalation Reference Concentration (µg/m3)
A31: Carbon disulfide | B31: 75-15-0 | C31: 700 | D31: Inhalation Reference Concentration (µg/m3)
A32: Carbon tetrachloride | B32: 56-23-5 | C32: 100 | D32: Inhalation Reference Concentration (µg/m3)
A33: Chlordane (alpha and gamma forms summed) | B33: 57-74-9 | C33: 0.7 | D33: Inhalation Reference Concentration (µg/m3)
A34: 4-Chloroaniline | B34: 106-47-8 | C34: Not Available | D34: No RfC/IUR Available for This Contaminant
A35: Chlorobenzene | B35: 108-90-7 | C35: 50 | D35: Inhalation Reference Concentration (µg/m3)
A36: Chloroethane (Ethyl chloride) | B36: 75-00-3 | C36: 10000 | D36: Inhalation Reference Concentration (µg/m3)
A37: Chloroform | B37: 67-66-3 | C37: 98 | D37: Inhalation Reference Concentration (µg/m3)
A38: Chloromethane (Methyl chloride) | B38: 74-87-3 | C38: 90 | D38: Inhalation Reference Concentration (µg/m3)
A39: 2-Chloronaphthalene | B39: 91-58-7 | C39: Not Available | D39: No RfC/IUR Available for This Contaminant
A40: 2-Chlorophenol (o-Chlorophenol) | B40: 95-57-8 | C40: Not Available | D40: No RfC/IUR Available for This Contaminant
A41: Chrysene | B41: 218-01-9 | C41: 6e-07 | D41: Inhalation Unit Risk Factor (µg/m3)-1
A42: Cobalt (total) | B42: 7440-48-4 | C42: 0.006 | D42: Inhalation Reference Concentration (µg/m3)
A43: Copper (total) | B43: 7440-50-8 | C43: Not Available | D43: No RfC/IUR Available for This Contaminant
A44: Cyanide | B44: 57-12-5 | C44: 0.8 | D44: Inhalation Reference Concentration (µg/m3)
A45: Cyclohexane | B45: 110-82-7 | C45: 6000 | D45: Inhalation Reference Concentration (µg/m3)
A46: 4,4'-DDD (p,p'-TDE) | B46: 72-54-8 | C46: Not Available | D46: No RfC/IUR Available for This Contaminant
A47: 4,4'-DDE (p,p'-DDX) | B47: 72-55-9 | C47: Not Available | D47: No RfC/IUR Available for This Contaminant
A48: 4,4'-DDT | B48: 50-29-3 | C48: Not Available | D48: No RfC/IUR Available for This Contaminant
A49: Dibenz(a,h)anthracene | B49: 53-70-3 | C49: 0.0006 | D49: Inhalation Unit Risk Factor (µg/m3)-1
A50: Dibromochloromethane (Chlorodibromomethane) | B50: 124-48-1 | C50: Not Available | D50: No RfC/IUR Available for This Contaminant
A51: 1,2-Dibromo-3-chloropropane | B51: 96-12-8 | C51: 0.2 | D51: Inhalation Reference Concentration (µg/m3)
A52: 1,2-Dibromoethane (Ethylene dibromide) | B52: 106-93-4 | C52: 9 | D52: Inhalation Reference Concentration (µg/m3)
A53: 1,2-Dichlorobenzene (o-Dichlorobenzene) | B53: 95-50-1 | C53: 200 | D53: Inhalation Reference Concentration (µg/m3)
A54: 1,3-Dichlorobenzene (m-Dichlorobenzene) | B54: 541-73-1 | C54: Not Available | D54: No RfC/IUR Available for This Contaminant
A55: 1,4-Dichlorobenzene (p-Dichlorobenzene) | B55: 106-46-7 | C55: 800 | D55: Inhalation Reference Concentration (µg/m3)
A56: 3,3'-Dichlorobenzidine | B56: 91-94-1 | C56: Not Available | D56: No RfC/IUR Available for This Contaminant
A57: Dichlorodifluoromethane (Freon 12) | B57: 75-71-8 | C57: Not Available | D57: No RfC/IUR Available for This Contaminant
A58: 1,1-Dichloroethane | B58: 75-34-3 | C58: Not Available | D58: No RfC/IUR Available for This Contaminant
A59: 1,2-Dichloroethane | B59: 107-06-2 | C59: 7 | D59: Inhalation Reference Concentration (µg/m3)
A60: 1,1-Dichloroethene (1,1-Dichloroethylene) | B60: 75-35-4 | C60: 200 | D60: Inhalation Reference Concentration (µg/m3)
A61: 1,2-Dichloroethene (cis) (c-1,2-Dichloroethylene) | B61: 156-59-2 | C61: Not Available | D61: No RfC/IUR Available for This Contaminant
A62: 1,2-Dichloroethene (trans) (t-1,2-Dichloroethylene) | B62: 156-60-5 | C62: Not Available | D62: No RfC/IUR Available for This Contaminant
A63: 2,4-Dichlorophenol | B63: 120-83-2 | C63: Not Available | D63: No RfC/IUR Available for This Contaminant
A64: 1,2-Dichloropropane | B64: 78-87-5 | C64: 4 | D64: Inhalation Reference Concentration (µg/m3)
A65: 1,3-Dichloropropene (total) | B65: 542-75-6 | C65: 20 | D65: Inhalation Reference Concentration (µg/m3)
A66: Dieldrin | B66: 60-57-1 | C66: Not Available | D66: No RfC/IUR Available for This Contaminant
A67: Diethylphthalate | B67: 84-66-2 | C67: Not Available | D67: No RfC/IUR Available for This Contaminant
A68: 2,4-Dimethylphenol | B68: 105-67-9 | C68: Not Available | D68: No RfC/IUR Available for This Contaminant
A69: Di-n-butyl phthalate | B69: 84-74-2 | C69: Not Available | D69: No RfC/IUR Available for This Contaminant
A70: 4,6-Dinitro-2-methylphenol | B70: 534-52-1 | C70: Not Available | D70: No RfC/IUR Available for This Contaminant
A71: 2,4-Dinitrophenol | B71: 51-28-5 | C71: Not Available | D71: No RfC/IUR Available for This Contaminant
A72: 2,4-Dinitrotoluene/2,6-Dinitrotoluene (mixture) | B72: 25321-14-6 | C72: Not Available | D72: No RfC/IUR Available for This Contaminant
A73: Di-n-octyl phthalate | B73: 117-84-0 | C73: Not Available | D73: No RfC/IUR Available for This Contaminant
A74: 1,4-Dioxane | B74: 123-91-1 | C74: 30 | D74: Inhalation Reference Concentration (µg/m3)
A75: Endosulfan I and Endosulfan II (alpha and beta) (summed) | B75: 115-29-7 | C75: Not Available | D75: No RfC/IUR Available for This Contaminant
A76: Endrin | B76: 72-20-8 | C76: Not Available | D76: No RfC/IUR Available for This Contaminant
A77: Ethylbenzene | B77: 100-41-4 | C77: 1000 | D77: Inhalation Reference Concentration (µg/m3)
A78: Fluoranthene | B78: 206-44-0 | C78: Not Available | D78: No RfC/IUR Available for This Contaminant
A79: Fluorene | B79: 86-73-7 | C79: Not Available | D79: No RfC/IUR Available for This Contaminant
A80: alpha-HCH (alpha-BHC) | B80: 319-84-6 | C80: Not Available | D80: No RfC/IUR Available for This Contaminant
A81: beta-HCH (beta-BHC) | B81: 319-85-7 | C81: Not Available | D81: No RfC/IUR Available for This Contaminant
A82: Heptachlor | B82: 76-44-8 | C82: Not Available | D82: No RfC/IUR Available for This Contaminant
A83: Heptachlor epoxide | B83: 1024-57-3 | C83: Not Available | D83: No RfC/IUR Available for This Contaminant
A84: Hexachlorobenzene | B84: 118-74-1 | C84: Not Available | D84: No RfC/IUR Available for This Contaminant
A85: Hexachloro-1,3-butadiene | B85: 87-68-3 | C85: Not Available | D85: No RfC/IUR Available for This Contaminant
A86: Hexachlorocyclopentadiene | B86: 77-47-4 | C86: 0.2 | D86: Inhalation Reference Concentration (µg/m3)
A87: Hexachloroethane | B87: 67-72-1 | C87: 30 | D87: Inhalation Reference Concentration (µg/m3)
A88: n-Hexane | B88: 110-54-3 | C88: 700 | D88: Inhalation Reference Concentration (µg/m3)
A89: 2-Hexanone | B89: 591-78-6 | C89: 30 | D89: Inhalation Reference Concentration (µg/m3)
A90: Indeno(1,2,3-cd)pyrene | B90: 193-39-5 | C90: 6e-05 | D90: Inhalation Unit Risk Factor (µg/m3)-1
A91: Isophorone | B91: 78-59-1 | C91: 2000 | D91: Inhalation Reference Concentration (µg/m3)
A92: Isopropylbenzene | B92: 98-82-8 | C92: 400 | D92: Inhalation Reference Concentration (µg/m3)
A93: Lead (total) | B93: 7439-92-1 | C93: 0.15 | D93: Lead NAAQS 0.15 µg/m3
A94: Lindane (gamma-HCH)(gamma-BHC) | B94: 58-89-9 | C94: Not Available | D94: No RfC/IUR Available for This Contaminant
A95: Manganese (total) | B95: 7439-96-5 | C95: 0.05 | D95: Inhalation Reference Concentration (µg/m3)
A96: Mercury (total) | B96: 7439-97-6 | C96: 0.3 | D96: Inhalation Reference Concentration (µg/m3)
A97: Methoxychlor | B97: 72-43-5 | C97: Not Available | D97: No RfC/IUR Available for This Contaminant
A98: Methyl acetate | B98: 79-20-9 | C98: Not Available | D98: No RfC/IUR Available for This Contaminant
A99: Methylene chloride (Dichloromethane) | B99: 75-09-2 | C99: 600 | D99: Inhalation Reference Concentration (µg/m3)
A100: 2-Methylnaphthalene | B100: 91-57-6 | C100: Not Available | D100: No RfC/IUR Available for This Contaminant
A101: 4-Methyl-2-pentanone (MIBK) | B101: 108-10-1 | C101: 3000 | D101: Inhalation Reference Concentration (µg/m3)
A102: 2-Methylphenol (o-cresol) | B102: 95-48-7 | C102: Not Available | D102: No RfC/IUR Available for This Contaminant
A103: 4-Methylphenol (p-cresol) | B103: 106-44-5 | C103: Not Available | D103: No RfC/IUR Available for This Contaminant
A104: Methyl tert-butyl ether (MTBE) | B104: 1634-04-4 | C104: 3000 | D104: Inhalation Reference Concentration (µg/m3)
A105: Naphthalene | B105: 91-20-3 | C105: 3 | D105: Inhalation Reference Concentration (µg/m3)
A106: Nickel (total) | B106: 7440-02-0 | C106: 0.014 | D106: Inhalation Reference Concentration (µg/m3)
A107: 4-Nitroaniline | B107: 100-01-6 | C107: 6 | D107: Inhalation Reference Concentration (µg/m3)
A108: Nitrobenzene | B108: 98-95-3 | C108: 9 | D108: Inhalation Reference Concentration (µg/m3)
A109: N-Nitrosodi-n-propylamine | B109: 621-64-7 | C109: Not Available | D109: No RfC/IUR Available for This Contaminant
A110: N-Nitrosodiphenylamine | B110: 86-30-6 | C110: Not Available | D110: No RfC/IUR Available for This Contaminant
A111: Pentachlorophenol | B111: 87-86-5 | C111: Not Available | D111: No RfC/IUR Available for This Contaminant
A112: Phenol | B112: 108-95-2 | C112: 200 | D112: Inhalation Reference Concentration (µg/m3)
A113: Polychlorinated biphenyls (PCBs) | B113: 1336-36-3 | C113: 0.00057 | D113: Inhalation Unit Risk Factor (µg/m3)-1
A114: Pyrene | B114: 129-00-0 | C114: Not Available | D114: No RfC/IUR Available for This Contaminant
A115: Selenium (total) | B115: 7782-49-2 | C115: Not Available | D115: No RfC/IUR Available for This Contaminant
A116: Silver (total) | B116: 7440-22-4 | C116: Not Available | D116: No RfC/IUR Available for This Contaminant
A117: Styrene | B117: 100-42-5 | C117: 1000 | D117: Inhalation Reference Concentration (µg/m3)
A118: Tertiary butyl alcohol (TBA) | B118: 75-65-0 | C118: Not Available | D118: No RfC/IUR Available for This Contaminant
A119: 1,2,4,5 - Tetrachlorobenzene | B119: 95-94-3 | C119: Not Available | D119: No RfC/IUR Available for This Contaminant
A120: 2,3,7,8-Tetrachlorodibenzo-p-dioxin | B120: 1746-01-6 | C120: Not Available | D120: No RfC/IUR Available for This Contaminant
A121: 1,1,2,2-Tetrachloroethane | B121: 79-34-5 | C121: Not Available | D121: No RfC/IUR Available for This Contaminant
A122: Tetrachloroethene (PCE) (Tetrachloroethylene) | B122: 127-18-4 | C122: 40 | D122: Inhalation Reference Concentration (µg/m3)
A123: 2,3,4,6-Tetrachlorophenol | B123: 58-90-2 | C123: Not Available | D123: No RfC/IUR Available for This Contaminant
A124: Toluene | B124: 108-88-3 | C124: 5000 | D124: Inhalation Reference Concentration (µg/m3)
A125: Toxaphene | B125: 8001-35-2 | C125: Not Available | D125: No RfC/IUR Available for This Contaminant
A126: 1,2,4-Trichlorobenzene | B126: 120-82-1 | C126: 2 | D126: Inhalation Reference Concentration (µg/m3)
A127: 1,1,1-Trichloroethane | B127: 71-55-6 | C127: 5000 | D127: Inhalation Reference Concentration (µg/m3)
A128: 1,1,2-Trichloroethane | B128: 79-00-5 | C128: Not Available | D128: No RfC/IUR Available for This Contaminant
A129: Trichloroethene (TCE) (Trichloroethylene) | B129: 79-01-6 | C129: 2 | D129: Inhalation Reference Concentration (µg/m3)
A130: Trichlorofluoromethane (Freon 11) | B130: 75-69-4 | C130: Not Available | D130: No RfC/IUR Available for This Contaminant
A131: 2,4,5-Trichlorophenol | B131: 95-95-4 | C131: Not Available | D131: No RfC/IUR Available for This Contaminant
A132: 2,4,6-Trichlorophenol | B132: 88-06-2 | C132: Not Available | D132: No RfC/IUR Available for This Contaminant
A133: 1,1,2-Trichloro-1,2,2-trifluoroethane | B133: 76-13-1 | C133: 5000 | D133: Inhalation Reference Concentration (µg/m3)
A134: 1,2,4-Trimethylbenzene | B134: 95-63-6 | C134: 60 | D134: Inhalation Reference Concentration (µg/m3)
A135: Vanadium (total) | B135: 7440-62-2 | C135: 0.1 | D135: Inhalation Reference Concentration (µg/m3)
A136: Vinyl chloride | B136: 75-01-4 | C136: 100 | D136: Inhalation Reference Concentration (µg/m3)
A137: Xylenes (total) | B137: 1330-20-7 | C137: 100 | D137: Inhalation Reference Concentration (µg/m3)
A138: Zinc (total) | B138: 7440-66-6 | C138: Not Available | D138: No RfC/IUR Available for This Contaminant

Sheet Calculator
B1: NJDEP Perimeter Air Monitoring HBTV and Response Level Calculator | P1: 1
B2: Site Name: | E2: Averaging Time (year) | F2: Exposure Time (hours/24 hours) | G2: Exposure Frequency (days/365 days) | H2: Exposure Duration (year) | I2: Number of Contaminants (Up to 4) | P2: 2
B3: Site PI #: | P3: 3
B4: Evaluated by: | P4: 4
B5: Date: | E5: 1 (NC), 70 (C) | F5: 8 | G5: 30 | H5: 1 | I5: 4
B7: Mercury (total) | E7: =VLOOKUP(B7,'Master Sheet'!$A$2:$AB$138,MATCH("CAS No.",'Master Sheet'!$A$1:$AB$1,0),FALSE) -> 7439-97-6 | F7: =IF(E7="1336-36-3", " ", IF('Calc Sheet'!A2="b", "For further guidance regarding analyzing CoCs as volatiles or particulates, refer to the User's Guide, Section 5.2.", " ")) -> For further guidance regarding analyzing CoCs as volatiles or particulates, refer to the User's Guide, Section 5.2. | I7: Benzene | L7: =VLOOKUP(I7,'Master Sheet'!$A$2:$AB$138,MATCH("CAS No.",'Master Sheet'!$A$1:$AB$1,0),FALSE) -> 71-43-2 | M7: =IF(L7="1336-36-3", " ", IF('Calc Sheet'!B2="b","For further guidance regarding analyzing CoCs as volatiles or particulates, refer to the User's Guide, Section 5.2."," ")) -> 
B8: =IF('Calc Sheet'!A2="p", "Analyzed as Particulate",IF('Calc Sheet'!A2="v", "Analyzed as Volatile","Provide Justification for Analyzing as Volatile or Particulate")) -> Provide Justification for Analyzing as Volatile or Particulate | I8: =IF('Calc Sheet'!B2="p","Analyzed as Particulate",IF('Calc Sheet'!B2="v", "Analyzed as Volatile", "Provide Justification for Analyzing as Volatile or Particulate")) -> Analyzed as Volatile
B9: =VLOOKUP(E7,'Master Sheet'!$B$2:$AB$138,MATCH("Basis for Final Toxicity Values",'Master Sheet'!$B$1:$AB$1,0),FALSE) -> Inhalation Reference Concentration (µg/m3) | C9: =VLOOKUP(E7,'Master Sheet'!$B$2:$AB$138,MATCH("Final Toxicity Values",'Master Sheet'!$B$1:$AB$1,0),FALSE) -> 0.3 | D9: HBTV (µg/m3) | E9: =IF(E7="7439-92-1",'Calc Sheet'!A13,IF(C9="Not Available", "Appropriate Toxicity Value Not Available, Choose a Surrogate or Consult with Department", 'Calc Sheet'!A5)) -> 10.95 | F9: =IF('Calc Sheet'!A2<>"p","HBTV (ppbv)","") -> HBTV (ppbv) | G9: =IF(C9="Not Available","Appropriate Toxicity Value Not Available",IF('Calc Sheet'!A2<>"p",'Calc Sheet'!A12,"")) -> 1.334700135 | I9: =VLOOKUP(L7,'Master Sheet'!$B$2:$AB$138,MATCH("Basis for Final Toxicity Values",'Master Sheet'!$B$1:$AB$1,0),FALSE) -> Inhalation Reference Concentration (µg/m3) | J9: =VLOOKUP(L7,'Master Sheet'!$B$2:$AB$138,MATCH("Final Toxicity Values",'Master Sheet'!$B$1:$AB$1,0),FALSE) -> 30 | K9: HBTV (µg/m3) | L9: =IF(L7="7439-92-1",'Calc Sheet'!B13,IF(J9="Not Available", "Appropriate Toxicity Value Not Available, Choose a Surrogate or Consult with Department", 'Calc Sheet'!B5)) -> 1095 | M9: =IF('Calc Sheet'!B2<>"p","HBTV (ppbv)","") -> HBTV (ppbv) | N9: =IF(J9="Not Available","Appropriate Toxicity Value Not Available",IF('Calc Sheet'!B2<>"p",'Calc Sheet'!B12,"")) -> 342.7570093
B10: =IF('Calc Sheet'!A2="p", "Soil Concentration (mg/kg)", "Percent of Total Volatiles in Air") -> Percent of Total Volatiles in Air | D10: Response Level (µg/m3) | E10: =IF(C9="Not Available","Not Available",IF(C10="",E9,IF(C10=0,"",IF(E7="7439-92-1",'Calc Sheet'!A15,IF('Calc Sheet'!A2<>"P",'Calc Sheet'!A9,IF('Calc Sheet'!A9>150,150,'Calc Sheet'!A9)))))) -> 10.95 | F10: =IF('Calc Sheet'!A2<>"p","Response Level (ppbv)",'Calc Sheet'!A17) -> Response Level (ppbv) | G10: =IF('Calc Sheet'!A2="p","",IF(C9="Not Available","Not Available",IF(C10="",G9,IF(C10=0,"",IF('Calc Sheet'!A2<>"p",'Calc Sheet'!A10,""))))) -> 1.334700135 | I10: =IF('Calc Sheet'!B2="p", "Soil Concentration (mg/kg)", "Percent of Total Volatiles in Air") -> Percent of Total Volatiles in Air | K10: Response Level (µg/m3) | L10: =IF(J9="Not Available","Not Available",IF(J10="",L9,IF(J10=0,"",IF(L7="7439-92-1",'Calc Sheet'!B15,IF('Calc Sheet'!B2<>"P",'Calc Sheet'!B9,IF('Calc Sheet'!B9>150,150,'Calc Sheet'!B9)))))) -> 1095 | M10: =IF('Calc Sheet'!B2<>"p","Response Level (ppbv)",'Calc Sheet'!B17) -> Response Level (ppbv) | N10: =IF('Calc Sheet'!B2="p","",IF(J9="Not Available","Not Available",IF(J10="",N9,IF(J10=0,"",IF('Calc Sheet'!B2<>"p",'Calc Sheet'!B10,""))))) -> 342.7570093
B11: =IF('Calc Sheet'!A2="b", "Soil Concentration (mg/kg)", "") -> Soil Concentration (mg/kg) | D11: =IF('Calc Sheet'!A2="b", "Response Level (µg/m3)", "") -> Response Level (µg/m3) | E11: =IF(C9="Not Available","Not Available",IF(C11="",E9,IF(C11=0,"",IF('Calc Sheet'!A20>150,150,'Calc Sheet'!A20)))) -> 10.95 | F11: =IF(C9="Not Available", " ",IF('Calc Sheet'!A2="p",'Calc Sheet'!A18,IF(C11=0,"",IF(C11="","",IF('Calc Sheet'!A2="b",'Calc Sheet'!A21,'Calc Sheet'!A18))))) ->  | I11: =IF('Calc Sheet'!B2="b", "Soil Concentration (mg/kg)", "") ->  | K11: =IF('Calc Sheet'!B2="b", "Response Level (µg/m3)", "") ->  | L11: =IF(J9="Not Available","Not Available",IF(J11="",L9,IF(J11=0,"",IF('Calc Sheet'!B20>150,150,'Calc Sheet'!B20)))) -> 1095 | M11: =IF(J9="Not Available", " ",IF('Calc Sheet'!B2="p",'Calc Sheet'!B18,IF(J11=0,"",IF(J11="","",IF('Calc Sheet'!B2="b",'Calc Sheet'!B21,'Calc Sheet'!B18))))) -> 
B13: Polychlorinated biphenyls (PCBs) | E13: =VLOOKUP(B13,'Master Sheet'!$A$2:$AB$138,MATCH("CAS No.",'Master Sheet'!$A$1:$AB$1,0),FALSE) -> 1336-36-3 | F13: =IF(E13="1336-36-3", " ", IF('Calc Sheet'!C2="b", "For further guidance regarding analyzing CoCs as volatiles or particulates, refer to the User's Guide, Section 5.2.", " ")) ->  | I13: Naphthalene | L13: =VLOOKUP(I13,'Master Sheet'!$A$2:$AB$138,MATCH("CAS No.",'Master Sheet'!$A$1:$AB$1,0),FALSE) -> 91-20-3 | M13: =IF(L13="1336-36-3", " ", IF('Calc Sheet'!D2="b", "For further guidance regarding analyzing CoCs as volatiles or particulates, refer to the User's Guide, Section 5.2.", " ")) -> For further guidance regarding analyzing CoCs as volatiles or particulates, refer to the User's Guide, Section 5.2.
B14: =IF('Calc Sheet'!C2="p","Analyzed as Particulate",IF('Calc Sheet'!C2="v","Analyzed as Volatile","Provide Justification for Analyzing as Volatile or Particulate")) -> Provide Justification for Analyzing as Volatile or Particulate | I14: =IF('Calc Sheet'!D2="p","Analyzed as Particulate",IF('Calc Sheet'!D2="v","Analyzed as Volatile","Provide Justification for Analyzing as Volatile or Particulate")) -> Provide Justification for Analyzing as Volatile or Particulate
B15: =VLOOKUP(E13,'Master Sheet'!$B$2:$AB$138,MATCH("Basis for Final Toxicity Values",'Master Sheet'!$B$1:$AB$1,0),FALSE) -> Inhalation Unit Risk Factor (µg/m3)-1 | C15: =VLOOKUP(E13,'Master Sheet'!$B$2:$AB$138,MATCH("Final Toxicity Values",'Master Sheet'!$B$1:$AB$1,0),FALSE) -> 0.00057 | D15: HBTV (µg/m3) | E15: =IF(E13="7439-92-1",'Calc Sheet'!C13,IF(C15="Not Available", "Appropriate Toxicity Value Not Available, Choose a Surrogate or Consult with Department", 'Calc Sheet'!C5)) -> 4.48245614 | F15: =IF('Calc Sheet'!C2<>"p","HBTV (ppbv)","") -> HBTV (ppbv) | G15: =IF(C15="Not Available","Appropriate Toxicity Value Not Available",IF('Calc Sheet'!C2<>"p",'Calc Sheet'!C12,"")) -> Refer to User's Guide Section 5.2 | I15: =VLOOKUP(L13,'Master Sheet'!$B$2:$AB$138,MATCH("Basis for Final Toxicity Values",'Master Sheet'!$B$1:$AB$1,0),FALSE) -> Inhalation Reference Concentration (µg/m3) | J15: =VLOOKUP(L13,'Master Sheet'!$B$2:$AB$138,MATCH("Final Toxicity Values",'Master Sheet'!$B$1:$AB$1,0),FALSE) -> 3 | K15: HBTV (µg/m3) | L15: =IF(L13="7439-92-1",'Calc Sheet'!D13,IF(J15="Not Available", "Appropriate Toxicity Value Not Available, Choose a Surrogate or Consult with Department", 'Calc Sheet'!D5)) -> 109.5 | M15: =IF('Calc Sheet'!D2<>"p","HBTV (ppbv)","") -> HBTV (ppbv) | N15: =IF(J15="Not Available","Appropriate Toxicity Value Not Available",IF('Calc Sheet'!D2<>"p",'Calc Sheet'!D12,"")) -> 20.88683882
B16: =IF('Calc Sheet'!C2="p", "Soil Concentration (mg/kg)", "Percent of Total Volatiles in Air") -> Percent of Total Volatiles in Air | D16: Response Level (µg/m3) | E16: =IF(C15="Not Available","Not Available",IF(C16="",E15,IF(C16=0,"",IF(E13="7439-92-1",'Calc Sheet'!C15,IF('Calc Sheet'!C2<>"P",'Calc Sheet'!C9,IF('Calc Sheet'!C9>150,150,'Calc Sheet'!C9)))))) -> 4.48245614 | F16: =IF('Calc Sheet'!C2<>"p","Response Level (ppbv)",'Calc Sheet'!C17) -> Response Level (ppbv) | G16: =IF('Calc Sheet'!C2="p","",IF(C15="Not Available","Not Available",IF(C16="",G15,IF(C16=0,"",IF('Calc Sheet'!C2<>"p",'Calc Sheet'!C10,""))))) -> Refer to User's Guide Section 5.2 | I16: =IF('Calc Sheet'!D2="p", "Soil Concentration (mg/kg)", "Percent of Total Volatiles in Air") -> Percent of Total Volatiles in Air | K16: Response Level (µg/m3) | L16: =IF(J15="Not Available","Not Available",IF(J16="",L15,IF(J16=0,"",IF(L13="7439-92-1",'Calc Sheet'!D15,IF('Calc Sheet'!D2<>"P",'Calc Sheet'!D9,IF('Calc Sheet'!D9>150,150,'Calc Sheet'!D9)))))) -> 109.5 | M16: =IF('Calc Sheet'!D2<>"p","Response Level (ppbv)",'Calc Sheet'!D17) -> Response Level (ppbv) | N16: =IF('Calc Sheet'!D2="p","",IF(J15="Not Available","Not Available",IF(J16="",N15,IF(J16=0,"",IF('Calc Sheet'!D2<>"p",'Calc Sheet'!D10,""))))) -> 20.88683882
B17: =IF('Calc Sheet'!C2="b", "Soil Concentration (mg/kg)", "") -> Soil Concentration (mg/kg) | D17: =IF('Calc Sheet'!C2="b", "Response Level (µg/m3)", "") -> Response Level (µg/m3) | E17: =IF(C15="Not Available","Not Available",IF(C17="",E15,IF(C17=0,"",IF('Calc Sheet'!C20>150,150,'Calc Sheet'!C20)))) -> 4.48245614 | F17: =IF(C15="Not Available", " ",IF('Calc Sheet'!C2="p",'Calc Sheet'!C18,IF(C17=0,"",IF(C17="","",IF('Calc Sheet'!C2="b",'Calc Sheet'!C21,'Calc Sheet'!C18))))) ->  | I17: =IF('Calc Sheet'!D2="b", "Soil Concentration (mg/kg)", "") -> Soil Concentration (mg/kg) | K17: =IF('Calc Sheet'!D2="b", "Response Level (µg/m3)", "") -> Response Level (µg/m3) | L17: =IF(J15="Not Available","Not Available",IF(J17="",L15,IF(J17=0,"",IF('Calc Sheet'!D20>150,150,'Calc Sheet'!D20)))) -> 109.5 | M17: =IF(J15="Not Available", " ",IF('Calc Sheet'!D2="p",'Calc Sheet'!D18,IF(J17=0,"",IF(J17="","",IF('Calc Sheet'!D2="b",'Calc Sheet'!D21,'Calc Sheet'!D18))))) -> 

Sheet Calc Sheet (hidden)
A2: =VLOOKUP(Calculator!E7,'Calc Sheet'!$B$36:$C$171,MATCH("Type",'Calc Sheet'!$B$35:$C$35,0),FALSE) -> B | B2: =VLOOKUP(Calculator!L7,'Calc Sheet'!$B$36:$C$171,MATCH("Type",'Calc Sheet'!$B$35:$C$35,0),FALSE) -> V | C2: =VLOOKUP(Calculator!E13,'Calc Sheet'!$B$36:$C$171,MATCH("Type",'Calc Sheet'!$B$35:$C$35,0),FALSE) -> B | D2: =VLOOKUP(Calculator!L13,'Calc Sheet'!$B$36:$C$171,MATCH("Type",'Calc Sheet'!$B$35:$C$35,0),FALSE) -> B
A3: =(Calculator!C9)/((Calculator!F5/24)*(Calculator!G5/365)*Calculator!H5) -> 10.95 | B3: =(Calculator!J9)/((Calculator!F5/24)*(Calculator!G5/365)*Calculator!H5) -> 1095 | C3: =(Calculator!C15)/((Calculator!F5/24)*(Calculator!G5/365)*Calculator!H5) -> 0.020805 | D3: =(Calculator!J15)/((Calculator!F5/24)*(Calculator!G5/365)*Calculator!H5) -> 109.5
A4: =(0.000001)*(70)/(Calculator!C9*(Calculator!F5/24)*(Calculator!G5/365)*Calculator!H5) -> 0.008516666667 | B4: =(0.000001)*(70)/(Calculator!J9*(Calculator!F5/24)*(Calculator!G5/365)*Calculator!H5) -> 8.516666667e-05 | C4: =(0.000001)*(70)/(Calculator!C15*(Calculator!F5/24)*(Calculator!G5/365)*Calculator!H5) -> 4.48245614 | D4: =(0.000001)*(70)/(Calculator!J15*(Calculator!F5/24)*(Calculator!G5/365)*Calculator!H5) -> 0.0008516666667
A5: =IF(Calculator!B9="Inhalation Unit Risk Factor (µg/m3)-1", A4, A3) -> 10.95 | B5: =IF(Calculator!I9="Inhalation Unit Risk Factor (µg/m3)-1", B4, B3) -> 1095 | C5: =IF(Calculator!B15="Inhalation Unit Risk Factor (µg/m3)-1", C4, C3) -> 4.48245614 | D5: =IF(Calculator!I15="Inhalation Unit Risk Factor (µg/m3)-1", D4, D3) -> 109.5
A6: =A5*(1000000/Calculator!C10) ->  | B6: =B5*(1000000/Calculator!J10) ->  | C6: =C5*(1000000/Calculator!C16) ->  | D6: =D5*(1000000/Calculator!J16) -> 
A8: =A5*(100/Calculator!C10) ->  | B8: =B5*(100/Calculator!J10) ->  | C8: =C5*(100/Calculator!C16) ->  | D8: =D5*(100/Calculator!J16) -> 
A9: =IF(Calculator!B10="Soil Concentration (mg/kg)", A6, A8) ->  | B9: =IF(Calculator!I10="Soil Concentration (mg/kg)", B6, B8) ->  | C9: =IF(Calculator!B16="Soil Concentration (mg/kg)", C6, C8) ->  | D9: =IF(Calculator!I16="Soil Concentration (mg/kg)", D6, D8) -> 
A10: =IF(A11>0,A9*24.45/A11, "Refer to User's Guide Section 5.2") ->  | B10: =IF(B11>0,B9*24.45/B11, "Refer to User's Guide Section 5.2") ->  | C10: =IF(C11>0,C9*24.45/C11, "Refer to User's Guide Section 5.2") -> Refer to User's Guide Section 5.2 | D10: =IF(D11>0,D9*24.45/D11, "Refer to User's Guide Section 5.2") -> 
A11: =VLOOKUP(Calculator!E7,'Calc Sheet'!$B$36:$D$171,MATCH("Molecular Weight",'Calc Sheet'!$B$35:$D$35,0),FALSE) -> 200.59 | B11: =VLOOKUP(Calculator!L7,'Calc Sheet'!$B$36:$D$171,MATCH("Molecular Weight",'Calc Sheet'!$B$35:$D$35,0),FALSE) -> 78.11 | C11: =VLOOKUP(Calculator!E13,'Calc Sheet'!$B$36:$D$171,MATCH("Molecular Weight",'Calc Sheet'!$B$35:$D$35,0),FALSE) -> 0 | D11: =VLOOKUP(Calculator!L13,'Calc Sheet'!$B$36:$D$171,MATCH("Molecular Weight",'Calc Sheet'!$B$35:$D$35,0),FALSE) -> 128.18
A12: =IF(A11>0,A5*24.45/A11,"Refer to User's Guide Section 5.2") -> 1.334700135 | B12: =IF(B11>0,B5*24.45/B11,"Refer to User's Guide Section 5.2") -> 342.7570093 | C12: =IF(C11>0, C5*24.45/C11, "Refer to User's Guide Section 5.2") -> Refer to User's Guide Section 5.2 | D12: =IF(D11>0,D5*24.45/D11,"Refer to User's Guide Section 5.2") -> 20.88683882
A13: =(Calculator!C9)/(Calculator!F5/24) -> 0.9 | B13: =(Calculator!J9)/(Calculator!F5/24) -> 90 | C13: =(Calculator!C15)/(Calculator!F5/24) -> 0.00171 | D13: =(Calculator!J15)/(Calculator!F5/24) -> 9
A14: =A13*(1000000/Calculator!C10) ->  | B14: =B13*(1000000/Calculator!J10) ->  | C14: =C13*(1000000/Calculator!C16) ->  | D14: =D13*(1000000/Calculator!J16) -> 
A15: =IF(A14>150, 150,A14) ->  | B15: =IF(B14>150, 150,B14) ->  | C15: =IF(C14>150, 150,C14) ->  | D15: =IF(D14>150, 150,D14) -> 
A16: =IF(A22>=150,"Value Exceeds NAAQS of 150 ug/m3; therefore, the NAAQS limit is the default Response Level","") ->  | B16: =IF(B22>=150,"Value Exceeds NAAQS of 150 ug/m3; therefore, the NAAQS limit is the default Response Level","") ->  | C16: =IF(C22>=150,"Value Exceeds NAAQS of 150 ug/m3; therefore, the NAAQS limit is the default Response Level","") ->  | D16: =IF(D22>=150,"Value Exceeds NAAQS of 150 ug/m3; therefore, the NAAQS limit is the default Response Level","") -> 
A17: =IF('Calc Sheet'!A2<>"P","",IF(Calculator!C10="","",IF(Calculator!C10=0,"",IF(Calculator!C9="NA","",IF(Calculator!E7="7439-92-1",A16,IF(A23>=150,"Value Exceeds NAAQS of 150 ug/m3; ","")))))) ->  | B17: =IF('Calc Sheet'!B2<>"P","",IF(Calculator!J10="","",IF(Calculator!J10=0,"",IF(Calculator!J9="NA","",IF(Calculator!L7="7439-92-1",B16,IF(B23>=150,"Value Exceeds NAAQS of 150 ug/m3; ","")))))) ->  | C17: =IF('Calc Sheet'!C2<>"P","",IF(Calculator!C16="","",IF(Calculator!C16=0,"",IF(Calculator!C15="NA","",IF(Calculator!E13="7439-92-1",C16,IF(C23>=150,"Value Exceeds NAAQS of 150 ug/m3; ","")))))) ->  | D17: =IF('Calc Sheet'!D2<>"P","",IF(Calculator!J16="","",IF(Calculator!J16=0,"",IF(Calculator!J15="NA","",IF(Calculator!L13="7439-92-1",D16,IF(D23>=150,"Value Exceeds NAAQS of 150 ug/m3; ","")))))) -> 
A18: =IF('Calc Sheet'!A2<>"P","",IF(Calculator!C10="","",IF(Calculator!C10=0,"",IF(Calculator!C9="NA","",IF(Calculator!E7="7439-92-1",A19,IF(A23>=150,"therefore, value defaults to NAAQS limit","")))))) ->  | B18: =IF('Calc Sheet'!B2<>"P","",IF(Calculator!J10="","",IF(Calculator!J10=0,"",IF(Calculator!J9="NA","",IF(Calculator!L7="7439-92-1",B19,IF(B23>=150,"therefore, value defaults to NAAQS limit","")))))) ->  | C18: =IF('Calc Sheet'!C2<>"P","",IF(Calculator!C16="","",IF(Calculator!C16=0,"",IF(Calculator!C15="NA","",IF(Calculator!E13="7439-92-1",C19,IF(C23>=150,"therefore, value defaults to NAAQS limit","")))))) ->  | D18: =IF('Calc Sheet'!D2<>"P","",IF(Calculator!J16="","",IF(Calculator!J16=0,"",IF(Calculator!J15="NA","",IF(Calculator!L13="7439-92-1",D19,IF(D23>=150,"therefore, value defaults to NAAQS limit","")))))) -> 
A19: =IF(A22>=150,"therefore, value defaults to NAAQS limit","") ->  | B19: =IF(B22>=150,"therefore, value defaults to NAAQS limit","") ->  | C19: =IF(C22>=150,"therefore, value defaults to NAAQS limit","") ->  | D19: =IF(D22>=150,"therefore, value defaults to NAAQS limit","") -> 
A20: =A5*(1000000/Calculator!C11) ->  | B20: =B5*(1000000/Calculator!J11) ->  | C20: =C5*(1000000/Calculator!C17) ->  | D20: =D5*(1000000/Calculator!J17) -> 
A21: =IF(A24>=150,"Value Exceeds NAAQS of 150 ug/m3; therefore, value defaults to NAAQS limit","") ->  | B21: =IF(B24>=150,"Value Exceeds NAAQS of 150 ug/m3; therefore, value defaults to NAAQS limit","") ->  | C21: =IF(C24>=150,"Value Exceeds NAAQS of 150 ug/m3; therefore, value defaults to NAAQS limit","") ->  | D21: =IF(D24>=150,"Value Exceeds NAAQS of 150 ug/m3; therefore, value defaults to NAAQS limit","") -> 
A22: =ROUND(A14,0) ->  | B22: =ROUND(B14,0) ->  | C22: =ROUND(C14,0) ->  | D22: =ROUND(D14,0) -> 
A23: =ROUND(A9,0) ->  | B23: =ROUND(B9,0) ->  | C23: =ROUND(C9,0) ->  | D23: =ROUND(D9,0) -> 
A24: =ROUND(A20,0) ->  | B24: =ROUND(B20,0) ->  | C24: =ROUND(C20,0) ->  | D24: =ROUND(D20,0) -> 
A35: Chemical | B35: CAS Number | C35: Type | D35: Molecular Weight | G35: ppbv | H35: µg/m3 | I35: ppbv
A36: Acenaphthene | B36: 83-32-9 | C36: P | D36: 154.21
A37: Acetone (2-Propanone) | B37: 67-64-1 | C37: V | D37: 58.08 | G37: 0.2 | H37: =(G37*D37)/24.5 -> 0.474122449 | I37: =H37*24.5/D37 -> 0.2
A38: Acetophenone | B38: 98-86-2 | C38: v | D38: 120.15 | G38: 0.2 | H38: =(G38*D38)/24.5 -> 0.9808163265 | I38: =H38*24.5/D38 -> 0.2
A39: Aldrin | B39: 309-00-2 | C39: p | D39: 364.92
A40: Aluminum (total) | B40: 7429-90-5 | C40: P | D40: 26.982
A41: Anthracene | B41: 120-12-7 | C41: P | D41: 178.24
A42: Antimony (total) | B42: 7440-36-0 | C42: p | D42: 121.76
A43: Arsenic (total) | B43: 7440-38-2 | C43: P | D43: 74.922
A44: Atrazine | B44: 1912-24-9 | C44: p | D44: 215.69
A45: Barium (total) | B45: 7440-39-3 | C45: P | D45: 137.33
A46: Benzaldehyde | B46: 100-52-7 | C46: v | D46: 106.12 | G46: 0.2 | H46: =(G46*D46)/24.5 -> 0.8662857143 | I46: =H46*24.5/D46 -> 0.2
A47: Benzene | B47: 71-43-2 | C47: V | D47: 78.11 | G47: 0.2 | H47: =(G47*D47)/24.5 -> 0.6376326531 | I47: =H47*24.5/D47 -> 0.2
A48: Benzo(a)anthracene (1,2-Benzanthracene) | B48: 56-55-3 | C48: P | D48: 228.3
A49: Benzo(a)pyrene | B49: 50-32-8 | C49: P | D49: 252.31
A50: Benzo(b)fluoranthene (3,4-Benzofluoranthene) | B50: 205-99-2 | C50: P | D50: 252.32
A51: Benzo(k)fluoranthene | B51: 207-08-9 | C51: P | D51: 252.32
A52: Beryllium | B52: 7440-41-7 | C52: P | D52: 9.01
A53: 1,1'-Biphenyl | B53: 92-52-4 | C53: p | D53: 154.21
A54: Bis(2-chloroethoxy)methane | B54: 111-91-1 | C54: P | D54: 173.04
A55: Bis(2-chloroethyl)ether | B55: 111-44-4 | C55: V | D55: 143.01 | G55: 0.2 | H55: =(G55*D55)/24.5 -> 1.167428571 | I55: =H55*24.5/D55 -> 0.2
A56: Bis(2-chloroisopropyl)ether; (2,2'-oxybis(1-chloropropane)); (2-chloro-1-methylethyl) ether | B56: 108-60-1 | C56: p | D56: 171.07
A57: Bis(2-ethylhexyl)phthalate | B57: 117-81-7 | C57: p | D57: 390.57
A58: Bromodichloromethane (Dichlorobromomethane) | B58: 75-27-4 | C58: v | D58: 163.83 | G58: 0.2 | H58: =(G58*D58)/24.5 -> 1.337387755 | I58: =H58*24.5/D58 -> 0.2
A59: Bromoform | B59: 75-25-2 | C59: v | D59: 252.73 | G59: 0.2 | H59: =(G59*D59)/24.5 -> 2.063102041 | I59: =H59*24.5/D59 -> 0.2
A60: Bromomethane (Methyl bromide) | B60: 74-83-9 | C60: V | D60: 94.94 | G60: 0.2 | H60: =(G60*D60)/24.5 -> 0.7750204082 | I60: =H60*24.5/D60 -> 0.2
A61: 2-Butanone (Methyl ethyl ketone) (MEK) | B61: 78-93-3 | C61: V | D61: 72.11 | G61: 0.5 | H61: =(G61*D61)/24.5 -> 1.471632653 | I61: =H61*24.5/D61 -> 0.5
A62: Butylbenzyl phthalate | B62: 85-68-7 | C62: p | D62: 312.37
A63: Cadmium | B63: 7440-43-9 | C63: P | D63: 112.41
A64: Caprolactam | B64: 105-60-2 | C64: P | D64: 113.16
A65: Carbon disulfide | B65: 75-15-0 | C65: V | D65: 76.13 | G65: 0.5 | H65: =(G65*D65)/24.5 -> 1.553673469 | I65: =H65*24.5/D65 -> 0.5
A66: Carbon tetrachloride | B66: 56-23-5 | C66: V | D66: 153.82 | G66: 0.2 | H66: =(G66*D66)/24.5 -> 1.255673469 | I66: =H66*24.5/D66 -> 0.2
A67: Chlordane (alpha and gamma forms summed) | B67: 57-74-9 | C67: P | D67: 409.78
A68: 4-Chloroaniline | B68: 106-47-8 | C68: P | D68: 127.57
A69: Chlorobenzene | B69: 108-90-7 | C69: V | D69: 112.56 | G69: 0.2 | H69: =(G69*D69)/24.5 -> 0.9188571429 | I69: =H69*24.5/D69 -> 0.2
A70: Chloroethane (Ethyl chloride) | B70: 75-00-3 | C70: V | D70: 64.52 | G70: 0.5 | H70: =(G70*D70)/24.5 -> 1.316734694 | I70: =H70*24.5/D70 -> 0.5
A71: Chloroform | B71: 67-66-3 | C71: V | D71: 119.38 | G71: 0.2 | H71: =(G71*D71)/24.5 -> 0.9745306122 | I71: =H71*24.5/D71 -> 0.2
A72: Chloromethane (Methyl chloride) | B72: 74-87-3 | C72: V | D72: 50.49 | G72: 0.5 | H72: =(G72*D72)/24.5 -> 1.030408163 | I72: =H72*24.5/D72 -> 0.5
A73: 2-Chloronaphthalene | B73: 91-58-7 | C73: P | D73: 162.62
A74: 2-Chlorophenol (o-Chlorophenol) | B74: 95-57-8 | C74: p | D74: 128.56
A75: Chrysene | B75: 218-01-9 | C75: P | D75: 228.3
A76: Cobalt (total) | B76: 7440-48-4 | C76: P | D76: 58.93
A77: Copper (total) | B77: 7440-50-8 | C77: p | D77: 63.55
A78: Cyanide | B78: 57-12-5 | C78: P | D78: 26.0174
A79: Cyclohexane | B79: 110-82-7 | C79: V | D79: 84.163
A80: 4,4'-DDD (p,p'-TDE) | B80: 72-54-8 | C80: p | D80: 320.05
A81: 4,4'-DDE (p,p'-DDX) | B81: 72-55-9 | C81: p | D81: 318.03
A82: 4,4'-DDT | B82: 50-29-3 | C82: p | D82: 354.49
A83: Dibenz(a,h)anthracene | B83: 53-70-3 | C83: P | D83: 278.36
A84: Dibromochloromethane (Chlorodibromomethane) | B84: 124-48-1 | C84: v | D84: 208.28 | G84: 0.2 | H84: =(G84*D84)/24.5 -> 1.700244898 | I84: =H84*24.5/D84 -> 0.2
A85: 1,2-Dibromo-3-chloropropane | B85: 96-12-8 | C85: V | D85: 236.33 | G85: 0.2 | H85: 1.92922449 | I85: 0.2
A86: 1,2-Dibromoethane (Ethylene dibromide) | B86: 106-93-4 | C86: V | D86: 187.86 | G86: 0.2 | H86: 1.53355102 | I86: 0.2
A87: 1,2-Dichlorobenzene (o-Dichlorobenzene) | B87: 95-50-1 | C87: V | D87: 147 | G87: 0.2 | H87: 1.2 | I87: 0.2
A88: 1,3-Dichlorobenzene (m-Dichlorobenzene) | B88: 541-73-1 | C88: v | D88: 147 | G88: 0.2 | H88: 1.2 | I88: 0.2
A89: 1,4-Dichlorobenzene (p-Dichlorobenzene) | B89: 106-46-7 | C89: v | D89: 147 | G89: 0.2 | H89: 1.2 | I89: 0.2
A90: 3,3'-Dichlorobenzidine | B90: 91-94-1 | C90: v | D90: 253.13 | G90: 0.2 | H90: 2.066367347 | I90: 0.2
A91: Dichlorodifluoromethane (Freon 12) | B91: 75-71-8 | C91: v | D91: 120.91 | G91: 0.5 | H91: 2.46755102 | I91: 0.5
A92: 1,1-Dichloroethane | B92: 75-34-3 | C92: v | D92: 98.96 | G92: 0.2 | H92: 0.8078367347 | I92: 0.2
A93: 1,2-Dichloroethane | B93: 107-06-2 | C93: V | D93: 98.96 | G93: 0.2 | H93: 0.8078367347 | I93: 0.2
A94: 1,1-Dichloroethene (1,1-Dichloroethylene) | B94: 75-35-4 | C94: V | D94: 96.94 | G94: 0.2 | H94: 0.7913469388 | I94: 0.2
A95: 1,2-Dichloroethene (cis) (c-1,2-Dichloroethylene) | B95: 156-59-2 | C95: v | D95: 96.94 | G95: 0.2 | H95: 0.7913469388 | I95: 0.2
A96: 1,2-Dichloroethene (trans) (t-1,2-Dichloroethylene) | B96: 156-60-5 | C96: v | D96: 96.94 | G96: 0.2 | H96: 0.7913469388 | I96: 0.2
A97: 2,4-Dichlorophenol | B97: 120-83-2 | C97: v | D97: 163
A98: 1,2-Dichloropropane | B98: 78-87-5 | C98: V | D98: 112.99 | G98: 0.2 | H98: =(G98*D98)/24.5 -> 0.9223673469 | I98: =H98*24.5/D98 -> 0.2
A99: 1,3-Dichloropropene (total) | B99: 542-75-6 | C99: V | D99: 110.97 | G99: 0.2 | H99: =(G99*D99)/24.5 -> 0.905877551 | I99: =H99*24.5/D99 -> 0.2
A100: Dieldrin | B100: 60-57-1 | C100: p | D100: 380.91
A101: Diethylphthalate | B101: 84-66-2 | C101: p | D101: 222.24
A102: 2,4-Dimethylphenol | B102: 105-67-9 | C102: p | D102: 122.17
A103: Di-n-butyl phthalate | B103: 84-74-2 | C103: p | D103: 278.35
A104: 2,4-Dinitrophenol | B104: 51-28-5 | C104: p | D104: 184.11
A105: 2,4-Dinitrotoluene/2,6-Dinitrotoluene (mixture) | B105: 25321-14-6 | C105: p | D105: 182.14
A106: Di-n-octyl phthalate | B106: 117-84-0 | C106: p | D106: 390.57
A107: 1,4-Dioxane | B107: 123-91-1 | C107: V | D107: 88.11 | G107: 0.2 | H107: =(G107*D107)/24.5 -> 0.7192653061 | I107: =H107*24.5/D107 -> 0.2
A108: Endosulfan I and Endosulfan II (alpha and beta) (summed) | B108: 115-29-7 | C108: p | D108: 406.92
A109: Endrin | B109: 72-20-8 | C109: p | D109: 380.91
A110: Ethylbenzene | B110: 100-41-4 | C110: V | D110: 106.17 | G110: 0.2 | H110: =(G110*D110)/24.5 -> 0.8666938776 | I110: =H110*24.5/D110 -> 0.2
A111: Fluoranthene | B111: 206-44-0 | C111: P | D111: 202.26
A112: Fluorene | B112: 86-73-7 | C112: P | D112: 166.22
A113: alpha-HCH (alpha-BHC) | B113: 319-84-6 | C113: p | D113: 290.83
A114: beta-HCH (beta-BHC) | B114: 319-85-7 | C114: p | D114: 290.83
A115: Heptachlor | B115: 76-44-8 | C115: p | D115: 373.32
A116: Heptachlor epoxide | B116: 1024-57-3 | C116: p | D116: 389.32
A117: Hexachlorobenzene | B117: 118-74-1 | C117: v | D117: 284.78 | G117: 0.2 | H117: =(G117*D117)/24.5 -> 2.324734694 | I117: =H117*24.5/D117 -> 0.2
A118: Hexachloro-1,3-butadiene | B118: 87-68-3 | C118: v | D118: 260.76 | G118: 0.2 | H118: =(G118*D118)/24.5 -> 2.128653061 | I118: =H118*24.5/D118 -> 0.2
A119: Hexachlorocyclopentadiene | B119: 77-47-4 | C119: P | D119: 272.77
A120: Hexachloroethane | B120: 67-72-1 | C120: V | D120: 236.74
A121: n-Hexane | B121: 110-54-3 | C121: V | D121: 86.18 | G121: 0.2 | H121: =(G121*D121)/24.5 -> 0.7035102041 | I121: =H121*24.5/D121 -> 0.2
A122: 2-Hexanone | B122: 591-78-6 | C122: V | D122: 100.16
A123: Indeno(1,2,3-cd)pyrene | B123: 193-39-5 | C123: P | D123: 276.34
A124: Isophorone | B124: 78-59-1 | C124: V | D124: 138.21 | G124: 0.2 | H124: =(G124*D124)/24.5 -> 1.128244898 | I124: =H124*24.5/D124 -> 0.2
A125: Isopropylbenzene | B125: 98-82-8 | C125: V | D125: 120.19 | G125: 0.2 | H125: =(G125*D125)/24.5 -> 0.9811428571 | I125: =H125*24.5/D125 -> 0.2
A126: Lead (total) | B126: 7439-92-1 | C126: P | D126: 207.2
A127: Lindane (gamma-HCH)(gamma-BHC) | B127: 58-89-9 | C127: p | D127: 290.83
A128: Manganese (total) | B128: 7439-96-5 | C128: P | D128: 54.94
A129: Mercury (total) | B129: 7439-97-6 | C129: B | D129: 200.59
A130: Methoxychlor | B130: 72-43-5 | C130: v | D130: 345.66 | G130: 0.2 | H130: =(G130*D130)/24.5 -> 2.821714286 | I130: =H130*24.5/D130 -> 0.2
A131: Methyl acetate | B131: 79-20-9 | C131: v | D131: 74.08 | G131: 0.2 | H131: =(G131*D131)/24.5 -> 0.6047346939 | I131: =H131*24.5/D131 -> 0.2
A132: Methylene chloride (Dichloromethane) | B132: 75-09-2 | C132: V | D132: 84.93 | G132: 0.5 | H132: =(G132*D132)/24.5 -> 1.733265306 | I132: =H132*24.5/D132 -> 0.5
A133: 2-Methylnaphthalene | B133: 91-57-6 | C133: p | D133: 142.2
A134: 4-Methyl-2-pentanone (MIBK) | B134: 108-10-1 | C134: V | D134: 100.16 | G134: 0.2 | H134: =(G134*D134)/24.5 -> 0.8176326531 | I134: =H134*24.5/D134 -> 0.2
A135: 2-Methylphenol (o-cresol) | B135: 95-48-7 | C135: p | D135: 108.14
A136: 4-Methylphenol (p-cresol) | B136: 106-44-5 | C136: p | D136: 108.14
A137: Methyl tert-butyl ether (MTBE) | B137: 1634-04-4 | C137: V | D137: 88.15 | G137: 0.2 | H137: =(G137*D137)/24.5 -> 0.7195918367 | I137: =H137*24.5/D137 -> 0.2
A138: Naphthalene | B138: 91-20-3 | C138: B | D138: 128.18 | G138: 0.2 | H138: =(G138*D138)/24.5 -> 1.046367347 | I138: =H138*24.5/D138 -> 0.2
A139: Nickel (total) | B139: 7440-02-0 | C139: P | D139: 58.69
A140: 4-Nitroaniline | B140: 100-01-6 | C140: P | D140: 138.13
A141: Nitrobenzene | B141: 98-95-3 | C141: V | D141: 123.11
A142: N-Nitrosodi-n-propylamine | B142: 621-64-7 | C142: v | D142: 130.19
A143: N-Nitrosodiphenylamine | B143: 86-30-6 | C143: p | D143: 198.23
A144: Pentachlorophenol | B144: 87-86-5 | C144: p | D144: 266.34
A145: Phenol | B145: 108-95-2 | C145: V | D145: 94.11 | G145: 0.2 | H145: =(G145*D145)/24.5 -> 0.768244898 | I145: =H145*24.5/D145 -> 0.2
A146: Polychlorinated biphenyls (PCBs) | B146: 1336-36-3 | C146: B
A147: Pyrene | B147: 129-00-0 | C147: P | D147: 202.26
A148: Selenium (total) | B148: 7782-49-2 | C148: p | D148: 78.96
A149: Silver (total) | B149: 7440-22-4 | C149: p | D149: 107.87
A150: Styrene | B150: 100-42-5 | C150: V | D150: 104.15 | G150: 0.2 | H150: =(G150*D150)/24.5 -> 0.8502040816 | I150: =H150*24.5/D150 -> 0.2
A151: Tertiary butyl alcohol (TBA) | B151: 75-65-0 | C151: v | D151: 74.12 | G151: 5 | H151: =(G151*D151)/24.5 -> 15.12653061 | I151: =H151*24.5/D151 -> 5
A152: 1,2,4,5 - Tetrachlorobenzene | B152: 95-94-3 | C152: v | D152: 215.89 | G152: 0.2 | H152: =(G152*D152)/24.5 -> 1.762367347 | I152: =H152*24.5/D152 -> 0.2
A153: 2,3,7,8-Tetrachlorodibenzo-p-dioxin | B153: 1746-01-6 | C153: p | D153: 321.98
A154: 1,1,2,2-Tetrachloroethane | B154: 79-34-5 | C154: v | D154: 167.85 | G154: 0.2 | H154: =(G154*D154)/24.5 -> 1.370204082 | I154: =H154*24.5/D154 -> 0.2
A155: Tetrachloroethene (PCE) (Tetrachloroethylene) | B155: 127-18-4 | C155: V | D155: 165.83 | G155: 0.2 | H155: =(G155*D155)/24.5 -> 1.353714286 | I155: =H155*24.5/D155 -> 0.2
A156: 2,3,4,6-Tetrachlorophenol | B156: 58-90-2 | C156: p | D156: 231.89
A157: Toluene | B157: 108-88-3 | C157: V | D157: 92.14 | G157: 0.2 | H157: =(G157*D157)/24.5 -> 0.7521632653 | I157: =H157*24.5/D157 -> 0.2
A158: Toxaphene | B158: 8001-35-2 | C158: p | D158: 413.82
A159: 1,2,4-Trichlorobenzene | B159: 120-82-1 | C159: V | D159: 181.45 | G159: 0.5 | H159: =(G159*D159)/24.5 -> 3.703061224 | I159: =H159*24.5/D159 -> 0.5
A160: 1,1,1-Trichloroethane | B160: 71-55-6 | C160: V | D160: 133.41 | G160: 0.2 | H160: 1.089061224 | I160: 0.2
A161: 1,1,2-Trichloroethane | B161: 79-00-5 | C161: v | D161: 133.41 | G161: 0.2 | H161: 1.089061224 | I161: 0.2
A162: Trichloroethene (TCE) (Trichloroethylene) | B162: 79-01-6 | C162: V | D162: 131.39 | G162: 0.2 | H162: 1.072571429 | I162: 0.2
A163: Trichlorofluoromethane (Freon 11) | B163: 75-69-4 | C163: v | D163: 137.37 | G163: 0.2 | H163: 1.121387755 | I163: 0.2
A164: 2,4,5-Trichlorophenol | B164: 95-95-4 | C164: p | D164: 197.45 | G164: 0.2 | H164: 1.611836735 | I164: 0.2
A165: 1,1,2-Trichloro-1,2,2-trifluoroethane | B165: 76-13-1 | C165: V | D165: 187.38
A166: 1,2,4-Trimethylbenzene | B166: 95-63-6 | C166: V | D166: 120.2
A167: 2,4,6-Trichlorophenol | B167: 88-06-2 | C167: p | D167: 197.45
A168: Vanadium (total) | B168: 7440-62-2 | C168: P | D168: 50.94
A169: Vinyl chloride | B169: 75-01-4 | C169: V | D169: 62.5 | G169: 0.2 | H169: =(G169*D169)/24.5 -> 0.5102040816 | I169: =H169*24.5/D169 -> 0.2
A170: Xylenes (total) | B170: 1330-20-7 | C170: V | D170: 106.17 | G170: 0.2 | H170: =(G170*D170)/24.5 -> 0.8666938776 | I170: =H170*24.5/D170 -> 0.2
A171: Zinc (total) | B171: 7440-66-6 | C171: p | D171: 65.38

Sheet User's Guide
A1: User's Guide 1. Enter the Site name, PI #, the name of person conducting the evaluation, and the date. 2. Enter the number of hours per day and days per year. 3. Select the number of chemicals that need an HBTV and Initial Response Level. 4. Select the chemicals from the drop-down list(s). 5. Enter the soil concentration or percent of total volatiles for each chemical, as appropriate. 6. Print results. Table of Contents:
A24: 1. PAM Calculator Standard Operating Procedure: Note: The blue boxes are for site-specific information, such as site name, program interest number, etc. Yellow boxes within the calculator are protected and represent values that cannot be changed. Blue boxes require user input to appropriately calculate health-based threshold values (HBTVs) and Response Level values. 1. Enter the Site Name, Program Interest Number (PI #) for the Site, name of person conducting the evaluation, and the date in the white boxes. 2. Enter the projected number of hours per day that remediation efforts will be conducted. The hours per day can be adjusted and response levels recalculated should project conditions change. The calculator allows the user to enter work hour durations between 8-12 hours per day. If work hours fall outside of the range, please contact the Department. 3. Enter the projected number of days per year that remediation efforts will be conducted. Be advised that the number of days cannot exceed 225 (NJDEP default exposure assumption for a non-residential exposure scenario) for the use of this calculator. The days per year can be adjusted and response levels recalculated should project conditions change. The calculator allows the user to enter between 20-225 days for the project duration. If remediation efforts will be conducted for greater than 225 days, please contact the Department. 4. Select the Number of Contaminants requiring the development of a HBTV and Response Level. The calculator allows the user to enter in a maximum of four contaminants at a time. If greater than four COCs exist at the site, a subsequent calculator(s) should be run for the remaining contaminants. 5. Select the COC from the Contaminant drop-down list(s). Selected contaminants should be those that are drivers for the air monitoring program (i.e., those that pose the greatest health risk to receptors based on their known concentrations in soil and/or their toxicity). 6. Enter the soil concentration for calculation of particulate Response Levels or percent volatile of total volatiles in air for calculation of vapor Response Levels for each chemical, as appropriate. See Section 5 of this User’s Guide for derivation of soil concentration and percent total volatiles. 7. Print results. HBTV and Response Levels will automatically populate once all required information has been entered.
A62: 2. Calculator Scope The NJDEP Perimeter Air Monitoring (PAM) Calculator is used to aid in calculating the HBTV and Response Level for a given contaminant at a remediation site. The HBTV is a calculated air concentration that is protective of human health for off-site receptors. The HBTV is calculated from selected chemical specific toxicity reference values and site-specific exposure assumptions (e.g., expected duration of the remedial activities having the potential for causing air emissions, hours worked per day, etc.). The response level is derived from the HBTV input values and is calculated using site-specific soil data. The response level is a concentration of a contaminant that is present as a vapor and/or particulate matter (PM10) which, if exceeded, acts as a threshold that dictates when additional actions should be taken to reduce vapors/particulate matter for the protection of receptors. Please be advised that the HBTV and response level values calculated using this resource are suggested concentrations that are not to be exceeded. More stringent HBTVs and response level values may be used if they are required to ensure receptor or public safety/health or to address other receptor and public concerns. The HBTVs and response levels may also be adjusted throughout the PAM process as confirmatory analytical data become available.
A80: 3. Health-Based Threshold Values HBTVs are derived using the health-based targets set forth in the New Jersey Brownfield Act (N.J.S.A. 58:10B-12.d). This statute mandates that the Department develop remediation standards based on (a) an additional cancer risk of one in one million and (b) a hazard quotient of one (1) for noncarcinogens. Given the short-term nature of PAM, as covered in the PAM Technical Guidance for project durations of 225 working days or less per calendar year, the noncancer endpoint (reference concentration (RfC)) was chosen, where available. If an RfC is not available for a contaminant, but an inhalation unit risk (IUR) factor for carcinogenicity is available, the IUR may be used to develop an HBTV. The health-based targets approved by the Department, the HBTV equations, and the contaminant inhalation toxicity values are already incorporated into the calculator for user convenience. An estimate of the reasonable maximum total number of days and number of hours each day vapors or particulate emissions associated with remedial action are expected to occur should be used to set the exposure assumptions associated with the chronic RfC or IUR. If the noncancer or cancer toxicity criteria for a particular COC are not in the calculator, contact the Department for guidance. The inhalation toxicity values used in the calculator can be found in Appendix B of the Perimeter Air Monitoring Technical Guidance. For cases where an area of concern or site COC is identified and not listed in the PAM calculator, consult the Department to determine if appropriate inhalation toxicity information is available and an HBTV can be calculated for the COC in question.
A102: 4. HBTV Equations A. Using a Reference Concentration (RfC) to Derive an HBTV Where: RfC = Reference Concentration = Contaminant-specific (μg/m3) AT = Averaging Time = 1 year ET = Exposure Time = Work shift length (hours/24 hours) EF = Exposure Frequency = Length of actual excavation (days/365 days) ED = Exposure Duration = 1 year B. Using an Inhalation Unit Risk (IUR) to Derive an HBTV If an RfC is not available for a contaminant, but an IUR (for carcinogenicity) is available, the IUR may be used to develop an HBTV. Where: TR = Target Risk = 1 x 10-6 AT = Averaging Time = 70 years IUR = Inhalation Unit Risk = Contaminant-specific but in terms of (μg/m3)-1 ET = Exposure Time = Work shift length (hours/24 hours) EF = Exposure Frequency = Length of actual excavation (days/365 days) ED = Exposure Duration = 1 year
A132: 5. Response Levels Calculated response level air concentrations are based on the HBTV but are adjusted using site-specific soil data to account for the capabilities of the selected monitoring instrumentation. Adjustments may include: • For particulates: using an estimate of the soil contaminant concentration (e.g., 95% UCL of all contaminant-specific soil values in the area to be remediated) to adjust the response level for a specific contaminant to a general dust level as measured by a particulate meter. • For volatiles: using the percent of a specific contaminant to adjust the response level to a general total volatiles concentration as measured by a real-time VOC meter. NOTE: For PCBs, mercury, and naphthalene, the PAM calculator will calculate both particulate and volatile response levels due to the chemical properties of these contaminants and their ability to exist in both forms in the environment (see Section 7.1 of the PAM Technical Guidance). NOTE: For real-time instrumentation that can detect specific contaminants (e.g., field gas chromatograph, mercury detector) response levels should not be used, as no adjustment to the HBTV is necessary. However, the contaminant HBTV air concentrations may be used with a time-weighted average (TWA) monitoring interval of 15-minutes or less. NOTE: Although particulate real time response levels will be derived using the PAM calculator, analytical sampling for PCBs must also be conducted to appropriately evaluate both volatile and particulate fractions. Analytical data for PCBs should be compared to the HBTVs and evaluation conducted to determine if PCB concentrations are consistently below the HBTVs. If analysis confirms that concentrations are consistently below the HBTV, the use of real time monitoring using PM10 as the surrogate may be employed. 5.1 Determining Percent of Total Volatiles When calculating the response level for volatiles, the PAM calculator requires the user to determine the “percent of total volatiles” for input into the PAM calculator. To determine the appropriate value for this input parameter, review available data to identify the maximum contaminant levels in soil for each volatile contaminant where the data indicates exceedance of the most stringent soil remediation standard (residential soil remediation standards for the ingestion-dermal and inhalation exposure pathways, and soil remediation standard for migration to ground water exposure pathway). If there is sufficient characterization data, the statistical mean of the dataset for the area(s) being remediated can be calculated (i.e., 95% upper confidence limit (UCL) of the arithmetic mean), otherwise the maximum value should be used. Next, the soil concentration (maximum concentration or 95% UCL of the mean) for the individual VOC being evaluated should be divided by the total soil concentration for all VOCs detected to determine the percent of total volatiles [% of Total Volatiles = (Individual VOC soil concentration (mg/kg)/Total VOCs soil concentration (mg/kg)) X 100]. This methodology assumes the fraction of total VOCs will be consistent with that in the soil. This methodology can be applied on a site-wide or an AOC-specific basis. Please see Step 1 of Appendix F for a case study of these steps and calculations. Once laboratory confirmation data is received for the site, the percent volatile may be adjusted based on the analytical results by using percent of an individual volatile per total volatiles in air. When using a real-time monitor to monitor for total volatiles, the investigator must also take into account the capabilities of the selected instrumentation and ensure that not only the appropriate correction factor will be used but that the instrument can detect contaminant concentrations below the calculated response level. 5.2 Semi-Volatile Response Levels – Volatile vs. Particulate Real-Time Monitoring Determination For the purposes of real-time monitoring using a real-time monitor for semi-volatiles, the PAM calculator will calculate response levels for both the particulate and volatile fractions for PCBs, mercury, and naphthalene. It is the responsibility of the investigator to evaluate and justify which form(s) will be monitored in the site-specific PAM plan. Justification can be supported with analytical results (air or speciated soil data) and/or chemical properties information. The remedial actions selected to address soil contamination can also provide the basis for the type of real time monitoring selected for semi-volatiles. For example, the selection of treatments to remediate PCB contamination in soils and sediments that employ an exothermic process would require monitoring for volatiles as this type of treatment has been shown to volatilize PCBs. It should be noted that neither a HBTV nor a response level can be calculated for PCBs in ppbv using the PAM Calculator since Total PCBs are a mixture of PCB congeners whose individual molecular weights differ. 5.3 Ceiling Limits A ceiling limit is an established concentration that can act as a response level for vapor or particulate matter. A ceiling limit can be developed as a site-wide maximum allowable concentration for a particular type of media. This value may be a site-specific calculation (e.g., the calculated HBTV or response level) or may be derived from existing guidance material. The 24-hour National Ambient Air Quality Standard (NAAQS) for PM10 of 150 µg/m3 is used as the ceiling value for the calculation of particulate HBTVs and real-time response levels and should not be exceeded. This value may serve as the response level for particulate matter during remediation activities. However, more stringent time-weighted average concentrations may be calculated using the HBTV and response level calculator depending on the toxicity and soil concentration of the contaminant, thus each contaminant should be evaluated individually. 5.4 Shorter-Duration Time-Weighted Average Response Levels The PAM Calculator will produce contaminant specific response level values, derived from HBTV values, that should be used during remediation at the perimeter of the site. The investigator may use the response level as a shorter-duration time-weighted average (e.g., 5-minute, 15-minute) value to accommodate instantaneous response level exceedances that may resolve quickly without intervention. This may aid in reducing the quantity of immediate reactionary protocols and work cessations to address these exceedances. If the response level is exceeded over the selected weighted averaging period, sources of emissions should be identified, instrumentation checked, and corrective actions and confirmatory sampling initiated as appropriate (see Section 5.6.1 through Section 5.6.3 of the PAM Technical Guidance) to confirm that the daily HBTVs are not being exceeded at the site. Note that the use of a shorter-duration TWA does not require any additional calculations other than the HBTV and Response Level concentrations. Example for the Development of the HBTV, Response Level, and Shorter-Duration TWA: User Input for PAM Calculator: • Exposure time – 8 hours • Exposure frequency – 30 days • Number of contaminants – 1 • Contaminant – Benzene • Percent volatiles in air – 2% Calculator Output: • HBTV – 3.43 x 102 ppbv • Response level – 1.71 x 104 ppbv (for the entire 8-hour day) • 15-minute TWA used for real-time PAM monitoring responses – 1.71 x 104 ppbv
A223: 6. Measuring Protectiveness of Response Levels The protectiveness of the real-time response level must be confirmed by taking confirmatory laboratory analytical samples, both during commencement of representative emission generating activities and periodically (e.g., once a week) over the course of the remediation. The results of confirmatory sample analysis should be compared to the COCs’ HBTVs to ensure COC concentrations are below their respective HBTV, and the real-time monitoring program is functioning as designed. For cases where the analytical results indicate that the response levels are not protective (i.e., confirmatory sampling results exceed the HBTV(s)), the following information should be evaluated: 1) Assess the analytical data to determine if new COCs are present. If so, HBTVs and response levels should be calculated for the new COCs. New equipment may be necessary for the real-time monitoring and confirmatory sampling of these COCs. 2) Determine whether the incorrect real-time equipment was selected to monitor the site COCs. If the equipment is incapable of detecting the site COCs, new equipment should be selected and employed. 3) Determine whether an incorrect surrogate was selected for real-time monitoring of COCs. If an incorrect surrogate was selected, a new surrogate should be determined, or contaminant-specific instrumentation can be used at the perimeter for real-time monitoring. 4) Determine whether the characterization data that was used to calculate the HBTVs and response levels was insufficient (e.g., not enough data, data that is not representative, unidentified hotspots). If characterization data is incomplete, additional sampling may be required to adequately address site COCs and concentrations for the development of HBTVs and response levels. For cases where analytical results consistently demonstrate that COCs for which HBTVs and response levels were initially calculated are not present in one or both forms (volatile and particulate), discretion may be used to reduce or discontinue monitoring, or reduce or discontinue confirmatory analytical sampling.
A254: 7. Response Level Equations A. Response Level Particulate Equation Where: HBTV (carcinogenic or non-carcinogenic) is calculated using the equations from Section 3.A or 3.B above. Soil Concentration = Concentration in mg/kg of selected contaminant (e.g., 95% UCL of the mean) B. Response Level Vapor Equation Where: HBTV (carcinogenic or non-carcinogenic) is calculated using the equations from Section 3.A. or 3.B.
